bitfinex-derivatives/quotes_ETHF0:USTF0_20260316
["timestamp","ask_amount","ask_price","bid_price","bid_amount"]
[1773628048829,1.8830147,2172.3,2171.2,1.68199614]
[1773628049228,0.00405522,2172.3,2171.2,1.68199614]
[1773628049432,1.8830147,2172.3,2171.2,1.68199614]
[1773628051134,1.8830147,2172.3,2171.4,1.9166945]
[1773628051429,1.87895948,2171.8,2170.5,1.92199086]
[1773628051633,1.87895948,2171.6,2170.5,1.92199086]
[1773628057036,1.87895948,2171.6,2170.7,1.9166945]
[1773628057236,1.87895948,2171.6,2170.9,1.9166945]
[1773628058337,1.87895948,2171.6,2170.6,1.9166945]
[1773628060140,1.87895948,2171.4,2170.6,1.9166945]
[1773628061139,1.87895948,2171.4,2170.5,0.00529636]
[1773628061432,1.87895948,2171.4,2170.5,1.92199086]
[1773628063141,1.87895948,2171.4,2170.7,1.9166945]
[1773628065743,4.35759527,2171.4,2170.5,0.00529636]
[1773628065942,4.35759527,2171.4,2170.3,0.67161281]
[1773628065943,1.87895948,2171.2,2170.3,0.66573979]
[1773628066138,1.90423241,2171.0,2169.5,0.23042]
[1773628066442,1.90423241,2171.0,2169.9,6.02]
[1773628067140,1.90402732,2170.8,2169.9,6.02517731]
[1773628067344,1.90402732,2170.8,2169.9,6.37358911]
[1773628067538,1.90402732,2170.8,2170.0,0.3484118]
[1773628068042,1.90402732,2170.8,2169.9,6.33390065]
[1773628068241,1.90402732,2170.8,2169.9,0.31390065]
[1773628070945,1.90402732,2170.8,2170.0,6.32799531]
[1773628071143,1.90402732,2170.8,2170.1,0.30336486]
[1773628072341,1.45814657,2171.6,2170.1,0.30336486]
[1773628072547,1.94706194,2171.6,2170.8,0.30519156]
[1773628072739,1.94706194,2171.6,2170.9,6.021]
[1773628072945,1.94706194,2171.6,2170.8,6.021]
[1773628073743,1.94706194,2171.6,2170.8,6.443369]
[1773628074440,1.94706194,2171.6,2170.9,0.42539367]
[1773628077838,1.94706194,2171.6,2171.0,6.36719318]
[1773628078157,1.94706194,2171.6,2170.9,6.02]
[1773628079246,1.94706194,2171.6,2170.8,0.34191382]
[1773628079546,1.94706194,2171.6,2170.9,6.3572886]
[1773628079746,1.94706194,2171.6,2171.0,0.24379458]
[1773628080050,0.377805,2172.2,2171.0,0.24379458]
[1773628080051,2.08982414,2172.1,2171.0,0.24379458]
[1773628080246,2.08982414,2171.9,2171.0,0.24379458]
[1773628081748,2.08982414,2171.9,2171.2,0.23370993]
[1773628082647,2.08982414,2171.9,2171.3,6.02]
[1773628082849,2.08982414,2171.9,2171.4,0.23100371]
[1773628083046,2.08982414,2171.9,2171.3,6.02]
[1773628083245,2.08982414,2171.9,2171.1,6.02]
[1773628083945,2.08982414,2171.9,2171.1,7.07256378]
[1773628084551,2.08982414,2171.9,2171.2,1.05256378]
[1773628087851,2.08982414,2172.2,2171.2,1.05256378]
[1773628088851,2.08982414,2172.2,2171.4,0.93681618]
[1773628089850,2.08982414,2172.2,2171.3,0.23024]
[1773628090048,2.08982414,2172.2,2171.4,6.02]
[1773628090248,2.08982414,2172.2,2171.5,0.92122897]
[1773628090450,2.08982414,2172.2,2171.5,0.92447288]
[1773628092052,2.08982414,2172.2,2171.6,6.92556887]
[1773628092252,2.08982414,2172.2,2171.6,0.90556887]
[1773628093553,2.08982414,2172.2,2171.7,6.02]
[1773628094052,2.08982414,2172.2,2171.7,6.92880871]
[1773628094951,2.08982414,2172.2,2171.8,0.90880871]
[1773628095353,2.08576892,2172.3,2171.8,0.90880871]
[1773628095847,2.08576892,2172.3,2171.7,1.97137156]
[1773628096254,2.08576892,2172.3,2171.5,6.02324391]
[1773628096449,2.0899797,2172.3,2171.5,6.02324391]
[1773628097250,2.0899797,2172.3,2171.5,0.00324391]
[1773628097453,2.0899797,2172.3,2171.4,1.97137156]
[1773628097454,2.0899797,2172.3,2171.4,6.02]
[1773628098254,2.0899797,2172.3,2171.5,1.97137156]
[1773628098454,2.0899797,2172.3,2171.5,1.97585041]
[1773628100256,0.00421078,2172.3,2171.5,1.97585041]
[1773628100457,2.09403492,2172.3,2171.5,1.97585041]
[1773628101553,2.09403492,2172.3,2171.7,1.97137156]
[1773628104159,0.00421078,2172.3,2171.7,2.20156156]
[1773628104962,2.74150775,2172.3,2171.7,2.20156156]
[1773628114178,0.00421078,2172.3,2171.7,2.20156156]
[1773628114774,2.73729697,2173.0,2171.7,2.20156156]
[1773628115075,2.73729697,2172.8,2171.7,2.20156156]
[1773628115278,2.73729697,2172.6,2171.9,2.86414618]
[1773628115777,2.74228003,2172.6,2171.9,2.86414618]
[1773628116778,2.74228003,2172.6,2172.0,6.021]
[1773628117077,2.74228003,2172.6,2172.0,8.88514618]
[1773628117278,2.74228003,2172.6,2172.1,2.86414618]
[1773628117679,2.74228003,2172.6,2172.0,6.021]
[1773628118880,2.74228003,2172.6,2172.0,8.88514618]
[1773628119282,2.74228003,2172.6,2171.8,2.86414618]
[1773628124788,2.74228003,2172.6,2172.0,2.86414618]
[1773628125884,0.00498306,2172.6,2172.0,2.86414618]
[1773628127983,2.73729697,2172.8,2172.2,2.86414618]
[1773628128184,2.73729697,2173.3,2172.4,2.86414618]
[1773628128382,2.73729697,2173.1,2172.4,2.86414618]
[1773628128784,2.73729697,2173.1,2172.3,6.022]
[1773628128991,2.74116223,2173.1,2172.3,8.88614618]
[1773628129893,2.74116223,2173.1,2172.4,2.86414618]
[1773628138400,0.00386526,2173.1,2172.4,2.86414618]
[1773628140001,2.59544986,2173.6,2172.4,2.86414618]
[1773628140201,2.59544986,2173.4,2172.4,2.86414618]
[1773628140898,4.29031345,2172.8,2172.5,2.81384227]
[1773628141100,2.59544986,2172.7,2172.5,6.022]
[1773628141401,2.59544986,2172.7,2172.5,3.10089223]
[1773628141601,1.69486359,2172.8,2172.5,3.10089223]
[1773628141801,4.29031345,2172.8,2172.5,3.10089223]
[1773628142102,4.29031345,2172.8,2172.5,6.022]
[1773628142298,2.6145635,2173.0,2172.6,1.6273232]
[1773628143496,2.6145635,2173.0,2172.3,2.22925595]
[1773628143699,2.6145635,2173.0,2172.1,0.23015]
[1773628143700,2.6145635,2173.0,2172.4,6.022]
[1773628143997,2.6145635,2173.0,2172.1,2.22925595]
[1773628144202,2.6145635,2173.0,2172.1,6.022]
[1773628144700,2.6145635,2173.0,2172.0,2.1158219]
[1773628144894,2.6145635,2173.0,2172.1,6.022]
[1773628145797,2.6145635,2173.0,2172.2,2.5075346]
[1773628146005,2.6145635,2173.0,2172.0,2.4932639]
[1773628146304,2.6145635,2173.0,2172.1,8.5152639]
[1773628146698,2.6145635,2173.0,2172.2,2.49483315]
[1773628151312,2.6145635,2173.0,2172.3,8.47929981]
[1773628152516,2.6145635,2173.0,2172.3,2.45729981]
[1773628152717,2.6145635,2173.0,2172.3,8.47929981]
[1773628153417,2.6145635,2173.0,2172.4,2.42768181]
[1773628162821,0.00366995,2173.4,2172.4,2.42768181]
[1773628163122,3.61975527,2173.3,2172.4,2.42768181]
[1773628164422,3.61975527,2173.3,2172.3,6.022]
[1773628164423,3.61975527,2173.3,2172.6,2.28973583]
[1773628164629,3.61975527,2173.3,2172.5,0.23011]
[1773628164630,3.61975527,2173.3,2172.8,2.28973583]
[1773628166327,0.00366995,2173.4,2172.8,2.28973583]
[1773628166525,3.62342522,2173.4,2172.8,2.28973583]
[1773628169822,1.69420314,2173.3,2172.1,9.64398487]
[1773628170031,3.61975527,2172.7,2172.2,8.23611356]
[1773628170231,3.61975527,2172.7,2172.3,8.21973103]
[1773628173534,3.61975527,2172.9,2172.4,2.15811528]
[1773628173734,3.61975527,2173.1,2172.4,2.15811528]
[1773628173934,3.61975527,2173.3,2172.4,2.15811528]
[1773628174135,3.61975527,2173.3,2172.5,2.14339325]
[1773628175129,3.61975527,2172.9,2172.5,2.14339325]
[1773628175327,3.61975527,2172.9,2172.5,8.16639325]
[1773628175528,3.61975527,2173.3,2172.6,2.12603187]
[1773628181841,3.62342522,2173.4,2172.6,2.12603187]
[1773628182237,0.00366995,2173.4,2172.6,2.12603187]
[1773628182438,0.00366995,2173.4,2172.8,2.09216866]
[1773628182741,0.00366995,2173.4,2173.0,2.09216866]
[1773628182947,3.62342522,2173.4,2173.0,2.09216866]
[1773628183538,0.00366995,2173.4,2173.0,2.09216866]
[1773628183742,3.61975527,2173.6,2173.0,2.09216866]
[1773628184746,3.62472287,2173.6,2173.0,2.09216866]
[1773628187643,0.0049676,2173.6,2173.0,2.09216866]
[1773628187842,3.61975527,2173.8,2173.2,3.04590222]
[1773628188140,3.61975527,2173.8,2173.4,3.04590222]
[1773628188343,3.37516936,2173.8,2173.4,3.04590222]
[1773628188639,7.71720314,2174.4,2173.4,3.04590222]
[1773628188640,3.61975527,2174.3,2173.4,3.04590222]
[1773628188841,3.62476053,2174.3,2173.4,3.05079593]
[1773628191349,3.61975527,2174.1,2173.4,3.05079593]
[1773628194343,3.61975527,2174.1,2173.6,3.2770138]
[1773628194546,3.61975527,2174.1,2173.8,3.2770138]
[1773628194845,3.34529319,2174.3,2173.9,6.023]
[1773628195442,3.34529319,2174.3,2173.4,0.00489371]
[1773628195443,3.34028793,2174.1,2173.4,0.00489371]
[1773628195646,3.34028793,2174.1,2173.5,6.023]
[1773628196047,3.34028793,2174.0,2173.5,6.023]
[1773628196747,3.34028793,2174.0,2173.6,3.26378949]
[1773628198853,3.34028793,2174.0,2173.5,3.2510679]
[1773628199054,3.34028793,2174.0,2173.5,6.023]
[1773628199654,3.34028793,2174.0,2173.4,0.00489371]
[1773628199856,3.34028793,2174.0,2173.5,6.023]
[1773628200854,3.34028793,2174.0,2173.0,3.26286392]
[1773628201055,3.34028793,2174.0,2173.1,6.023]
[1773628201355,3.34028793,2174.0,2173.1,9.27603993]
[1773628202049,3.34028793,2174.0,2173.1,9.28158972]
[1773628202248,3.34028793,2174.0,2173.2,6.023]
[1773628202649,3.34028793,2174.0,2173.2,9.26736637]
[1773628202847,3.34028793,2174.0,2173.2,6.023]
[1773628203450,3.34028793,2174.0,2173.3,3.24499095]
[1773628206561,3.34028793,2174.0,2173.1,3.26310495]
[1773628206761,3.34028793,2174.0,2173.2,9.29459739]
[1773628207254,3.34028793,2174.0,2173.3,3.25708625]
[1773628207959,3.34028793,2174.0,2173.4,6.023]
[1773628209463,3.34028793,2173.6,2172.7,9.2713016]
[1773628210360,3.34028793,2173.6,2172.7,9.27565269]
[1773628210761,3.34028793,2173.6,2172.8,3.23702476]
[1773628213567,3.34028793,2173.6,2172.9,6.024]
[1773628213865,3.34028793,2173.6,2172.8,3.23702476]
[1773628214059,3.34028793,2173.6,2172.8,9.26102476]
[1773628214256,3.34028793,2173.6,2172.9,3.15334292]
[1773628214864,3.34028793,2173.6,2173.0,6.024]
[1773628215361,3.34028793,2173.6,2172.7,3.15465934]
[1773628215566,3.34028793,2173.6,2173.0,6.024]
[1773628215967,3.34028793,2173.6,2173.0,9.15201535]
[1773628216267,3.34028793,2173.6,2173.1,3.11377074]
[1773628216663,3.34028793,2173.6,2173.0,9.13777074]
[1773628216863,3.34028793,2173.6,2173.0,3.11377074]
[1773628217868,3.34028793,2173.6,2172.7,3.10575733]
[1773628218063,3.34028793,2173.6,2172.8,6.024]
[1773628218264,3.34028793,2173.6,2172.9,3.08723112]
[1773628218568,3.34028793,2173.6,2172.7,3.09158221]
[1773628218867,3.34028793,2173.6,2172.9,3.0865942]
[1773628219567,3.34028793,2173.6,2172.7,3.07679951]
[1773628219767,3.34028793,2173.6,2172.8,6.024]
[1773628220366,3.34028793,2173.6,2172.8,3.00355397]
[1773628220567,3.34028793,2173.6,2172.5,9.02755397]
[1773628220869,3.34028793,2173.6,2172.6,3.00355397]
[1773628221665,3.34028793,2173.6,2172.6,3.00732038]
[1773628222163,3.34028793,2173.6,2172.6,0.00376641]
[1773628222664,3.33782306,2173.4,2172.4,6.024]
[1773628223466,3.33782306,2173.3,2172.5,3.34203324]
[1773628223968,3.33782306,2173.3,2172.5,3.34537298]
[1773628224470,3.33782306,2173.3,2172.5,0.00333974]
[1773628224771,3.33782306,2173.3,2172.5,3.34537298]
[1773628226274,3.33782306,2173.3,2172.5,0.00333974]
[1773628227770,9.36282306,2173.3,2172.5,0.00333974]
[1773628227974,3.33782306,2173.2,2172.2,9.27452078]
[1773628228181,3.33782306,2173.2,2172.2,3.24952078]
[1773628229076,3.33782306,2173.2,2172.2,3.2548947]
[1773628229876,3.33782306,2173.0,2172.2,3.2548947]
[1773628232581,3.33782306,2173.0,2171.9,3.18628734]
[1773628233184,3.33782306,2173.0,2171.9,9.21128734]
[1773628233483,3.33782306,2173.0,2172.0,3.02197643]
[1773628234783,3.33782306,2173.0,2172.0,3.25213643]
[1773628235988,3.33782306,2173.0,2172.0,3.01101524]
[1773628236487,3.33782306,2173.0,2171.9,3.00137701]
[1773628238490,3.33782306,2173.5,2171.9,3.23153701]
[1773628238690,3.33782306,2173.4,2171.9,3.23153701]
[1773628239385,3.33782306,2173.4,2172.1,2.90670806]
[1773628240684,3.33782306,2173.4,2172.3,2.85519283]
[1773628241286,3.33782306,2173.2,2172.1,2.83876604]
[1773628242982,3.33782306,2173.0,2172.1,2.83876604]
[1773628246393,3.33782306,2173.0,2172.2,2.79873704]
[1773628253694,3.33782306,2173.0,2172.1,6.025]
[1773628254095,3.33782306,2173.0,2172.2,2.70938385]
[1773628255193,3.33782306,2173.0,2172.0,6.025]
[1773628255393,3.33782306,2173.0,2172.1,2.69486838]
[1773628256699,3.33782306,2173.0,2172.2,2.68445154]
[1773628258799,3.41016911,2172.7,2172.0,2.65951067]
[1773628259001,3.41441319,2172.7,2172.0,2.65951067]
[1773628259897,0.00424408,2172.7,2172.0,2.65951067]
[1773628260396,0.00424408,2172.7,2172.2,2.63001759]
[1773628260597,3.82337426,2173.5,2172.8,2.62577351]
[1773628260797,1.69542361,2174.0,2173.0,2.62577351]
[1773628260996,3.41016911,2173.8,2173.0,2.62577351]
[1773628261497,3.41498349,2173.8,2173.0,2.62577351]
[1773628262005,3.41016911,2173.7,2173.0,2.62577351]
[1773628262603,3.41016911,2173.5,2173.0,8.66990022]
[1773628262801,3.41016911,2173.5,2173.1,2.64490022]
[1773628265206,3.41016911,2173.5,2173.1,1.89515432]
[1773628269509,3.41016911,2173.5,2173.0,7.87647166]
[1773628269707,3.41016911,2173.5,2173.1,1.85147166]
[1773628271812,3.41016911,2173.5,2173.0,7.85605916]
[1773628272408,3.41016911,2173.5,2173.1,1.81831981]
[1773628272808,3.41016911,2173.5,2173.0,6.025]
[1773628273706,3.41016911,2173.5,2173.0,7.83217351]
[1773628274010,3.41016911,2173.5,2173.1,1.79156085]
[1773628274608,3.41016911,2173.5,2173.1,1.77789384]
[1773628285519,3.41016911,2173.5,2173.0,7.85210275]
[1773628287623,3.41016911,2173.5,2173.1,1.80505811]
[1773628287824,2.95098934,2173.8,2173.1,2.03509811]
[1773628288025,2.95098934,2173.8,2173.1,1.80505811]
[1773628288324,2.95098934,2173.8,2172.7,1.79429549]
[1773628288523,2.95098934,2173.8,2172.8,7.81929549]
[1773628288924,2.94617496,2173.7,2172.9,1.80008663]
[1773628293226,2.94617496,2173.7,2173.0,6.025]
[1773628294928,2.94617496,2173.5,2172.6,9.87408487]
[1773628295132,2.94617496,2173.5,2172.7,1.72615597]
[1773628297831,2.94617496,2173.5,2172.6,6.2551]
[1773628298234,2.94617496,2173.5,2172.7,1.69868393]
[1773628302637,2.94617496,2173.5,2172.3,9.64398487]
[1773628302843,2.94617496,2173.1,2172.3,1.65993475]
[1773628303344,2.94617496,2173.1,2172.4,1.65254409]
[1773628303838,2.94617496,2173.5,2172.6,1.65412476]
[1773628304038,2.94617496,2173.5,2172.7,1.65412476]
[1773628309545,2.94617496,2173.5,2172.8,1.66537249]
[1773628310942,2.94617496,2173.5,2172.7,6.026]
[1773628311148,2.94617496,2173.5,2172.7,7.66067946]
[1773628312349,2.94617496,2173.5,2172.8,1.62558141]
[1773628313549,2.94617496,2173.5,2172.7,7.64098065]
[1773628313750,1.69385108,2173.4,2172.7,7.64098065]
[1773628313950,2.77508615,2173.3,2172.7,7.64098065]
[1773628314752,2.77508615,2173.3,2172.7,6.026]
[1773628316055,2.77508615,2173.3,2172.6,1.57422961]
[1773628316354,2.77508615,2173.3,2172.7,6.026]
[1773628318964,2.77508615,2173.3,2172.7,7.5596153]
[1773628319357,2.77508615,2173.3,2172.1,9.87413487]
[1773628319562,2.77508615,2173.3,2172.4,1.5336153]
[1773628320261,2.77508615,2173.3,2172.4,7.5596153]
[1773628320459,2.77508615,2173.3,2172.4,1.51901146]
[1773628321156,0.00481438,2173.8,2173.0,1.48505658]
[1773628321360,0.00481438,2173.8,2172.9,0.23006]
[1773628321361,2.77508615,2173.7,2173.2,1.48505658]
[1773628325069,2.77508615,2173.7,2173.1,1.6089342]
[1773628326662,2.77508615,2173.7,2172.7,6.026]
[1773628326868,2.77508615,2173.5,2172.3,1.614622]
[1773628327070,2.77508615,2173.3,2172.3,1.614622]
[1773628329073,2.77508615,2173.3,2172.2,7.60929938]
[1773628330372,2.77508615,2173.3,2172.3,1.57885407]
[1773628331576,2.77508615,2173.3,2172.2,1.58361939]
[1773628331971,2.77508615,2173.3,2172.1,7.66323062]
[1773628332171,2.77508615,2173.3,2172.2,1.62511616]
[1773628333479,2.77508615,2173.1,2172.1,6.026]
[1773628333679,2.77508615,2172.9,2172.1,6.026]
[1773628334478,2.77508615,2172.9,2172.0,1.63664859]
[1773628335080,2.77508615,2172.9,2171.9,0.00532521]
[1773628335780,3.14348025,2172.9,2171.9,0.00532521]
[1773628336879,3.14348025,2172.9,2171.9,1.61504347]
[1773628337577,2.77508615,2172.7,2171.9,0.00532521]
[1773628339775,2.77508615,2172.7,2171.3,0.23024]
[1773628339776,2.77508615,2172.7,2171.6,1.5893934]
[1773628340684,2.77508615,2172.7,2171.6,1.59415686]
[1773628340882,2.77508615,2172.7,2171.6,0.00476346]
[1773628341684,2.77508615,2172.7,2171.6,1.58406528]
[1773628342085,2.77508615,2172.7,2171.6,0.00476346]
[1773628345883,2.80302682,2172.5,2171.6,0.00476346]
[1773628346287,4.49733567,2172.5,2171.6,0.00476346]
[1773628346485,2.80302682,2172.4,2171.6,0.00476346]
[1773628349786,2.80302682,2172.4,2171.4,1.50897026]
[1773628349988,2.80302682,2172.4,2170.9,1.48918494]
[1773628350790,2.80302682,2172.4,2170.9,1.49321681]
[1773628352892,2.80302682,2172.4,2171.1,1.46982233]
[1773628355393,2.80302682,2172.1,2171.1,1.46982233]
[1773628355592,2.80302682,2172.0,2171.1,1.46982233]
[1773628356094,2.80302682,2172.0,2171.0,0.23027]
[1773628356395,2.80302682,2172.0,2171.0,1.58767229]
[1773628356595,2.80302682,2172.0,2171.0,1.35740229]
[1773628365001,2.80302682,2172.0,2170.9,0.00403187]
[1773628365206,2.80302682,2171.8,2170.9,1.61992072]
[1773628366008,6.03229764,2172.1,2170.9,1.61992072]
[1773628366009,2.80732446,2172.1,2171.2,1.38352726]
[1773628366206,0.00429764,2172.1,2171.4,2.90906338]
[1773628375608,2.85518858,2172.1,2171.4,2.90906338]
[1773628378216,2.85089094,2171.9,2170.9,2.81112789]
[1773628378916,2.85089094,2171.8,2170.9,2.81112789]
[1773628382020,2.85089094,2171.8,2171.0,1.69684366]
[1773628382213,2.85089094,2171.8,2171.1,2.80709602]
[1773628393523,2.85089094,2171.4,2170.9,2.81112789]
[1773628393826,2.85089094,2171.4,2170.9,0.00403187]
[1773628394229,2.85089094,2171.4,2170.9,2.81112789]
[1773628399435,2.85089094,2171.4,2170.9,0.00403187]
[1773628400438,2.85089094,2171.4,2170.9,2.81112789]
[1773628400836,2.85089094,2171.4,2170.9,0.00403187]
[1773628401437,2.85089094,2171.4,2170.9,2.81112789]
[1773628401936,2.85089094,2171.4,2170.9,0.00403187]
[1773628402132,2.85089094,2171.4,2170.9,2.65623674]
[1773628406832,2.62566588,2171.6,2170.9,2.65623674]
[1773628407039,0.00429764,2172.1,2171.3,2.65220487]
[1773628408036,2.62996352,2172.1,2171.3,2.65220487]
[1773628409140,0.00429764,2172.1,2171.5,2.65220487]
[1773628410443,8.65366588,2172.4,2171.6,1.69684366]
[1773628410637,8.65366588,2172.4,2171.7,2.65220487]
[1773628411440,8.65775647,2172.4,2171.7,2.65220487]
[1773628413444,0.00409059,2172.4,2171.9,2.65220487]
[1773628413644,0.00409059,2172.4,2172.1,2.65220487]
[1773628414143,2.62566588,2172.7,2172.1,2.65220487]
[1773628415036,2.6289509,2172.7,2172.1,2.65220487]
[1773628419048,0.00328502,2172.7,2172.1,2.65220487]
[1773628419542,1.69684366,2173.0,2172.3,2.65220487]
[1773628419543,2.62566588,2173.0,2172.3,2.65220487]
[1773628419944,2.62566588,2172.9,2172.3,2.65220487]
[1773628420142,2.62566588,2172.7,2171.9,2.65220487]
[1773628420549,2.63021296,2172.7,2171.9,2.65220487]
[1773628423145,2.62566588,2172.5,2171.7,2.65220487]
[1773628423345,2.62566588,2172.3,2171.7,2.65220487]
[1773628423545,2.62566588,2172.3,2171.5,2.65220487]
[1773628423747,1.69684366,2172.2,2171.5,2.65220487]
[1773628423950,2.62566588,2172.1,2171.5,2.65220487]
[1773628424147,2.62566588,2172.3,2171.5,2.65220487]
[1773628425444,6.03154708,2172.7,2171.7,2.65220487]
[1773628425445,2.62566588,2172.6,2171.7,2.65220487]
[1773628425842,2.62566588,2172.6,2171.8,1.69684366]
[1773628426048,2.62566588,2172.6,2171.9,2.65220487]
[1773628427455,2.62566588,2172.5,2171.7,8.90939487]
[1773628427753,2.62566588,2172.5,2171.8,2.65220487]
[1773628429449,2.62566588,2172.5,2171.9,2.65220487]
[1773628429651,2.63021296,2172.7,2171.9,2.65220487]
[1773628433660,0.00454708,2172.7,2172.1,2.43970203]
[1773628433956,0.00454708,2172.7,2172.2,2.43970203]
[1773628434553,0.00454708,2172.7,2172.3,2.38669188]
[1773628435155,2.42012587,2172.7,2172.3,2.38669188]
[1773628435656,2.41557879,2172.5,2171.8,2.38669188]
[1773628442459,0.00454708,2172.7,2171.9,2.38669188]
[1773628442659,0.00454708,2172.7,2172.1,2.38669188]
[1773628442957,2.41557879,2173.3,2172.3,2.38669188]
[1773628443163,2.41557879,2173.3,2172.7,2.38669188]
[1773628443367,2.41557879,2173.8,2172.7,2.38669188]
[1773628443965,2.41890545,2173.8,2172.7,2.39093108]
[1773628444268,2.41890545,2173.8,2172.9,2.38669188]
[1773628456081,2.41890545,2173.8,2172.7,2.39093108]
[1773628456376,2.41890545,2173.8,2172.7,0.0042392]
[1773628456670,2.41557879,2173.6,2172.7,0.0042392]
[1773628456876,2.41557879,2173.4,2172.7,2.39093108]
[1773628460574,2.41557879,2173.7,2172.7,2.39093108]
[1773628464277,2.41557879,2173.7,2173.1,2.42327745]
[1773628465986,2.41557879,2173.7,2173.0,0.23006]
[1773628466283,2.41557879,2173.7,2173.0,2.65333745]
[1773628470287,2.44596087,2173.8,2173.0,2.65333745]
[1773628495212,2.44596087,2173.8,2172.7,0.0042392]
[1773628495412,2.22977884,2173.6,2172.7,2.24734704]
[1773628495708,2.22977884,2173.4,2172.7,2.24734704]
[1773628505714,6.03132666,2173.8,2172.9,2.24310784]
[1773628505918,2.22977884,2173.7,2173.1,2.24310784]
[1773628506515,2.2331055,2173.8,2173.3,2.24310784]
[1773628506810,0.00332666,2173.8,2173.3,2.24310784]
[1773628507215,2.2331055,2173.8,2173.1,2.24310784]
[1773628507416,2.22977884,2173.7,2173.2,6.029]
[1773628507618,2.22977884,2173.7,2173.1,6.029]
[1773628507916,2.22977884,2173.7,2173.1,8.27210784]
[1773628508815,2.22977884,2173.4,2172.9,2.24310784]
[1773628509521,2.22977884,2173.4,2172.8,8.27210784]
[1773628510324,2.22977884,2173.4,2172.8,6.029]
[1773628510725,2.22977884,2173.4,2172.8,8.27210784]
[1773628511726,2.22977884,2173.4,2172.9,2.24310784]
[1773628514526,2.22977884,2173.3,2172.7,0.0042392]
[1773628514826,2.22977884,2173.1,2172.7,2.24734704]
[1773628520533,2.22977884,2173.5,2172.7,2.24734704]
[1773628521739,2.22977884,2173.5,2172.9,2.24310784]
[1773628525036,2.22977884,2173.5,2172.8,6.029]
[1773628525237,2.22977884,2173.5,2172.8,8.15011135]
[1773628526240,2.22977884,2173.5,2172.9,2.12111135]
[1773628529350,2.2089875,2173.3,2172.7,0.0042392]
[1773628529550,2.2089875,2173.3,2172.7,2.12535055]
[1773628535856,2.2089875,2173.3,2172.7,0.0042392]
[1773628536059,2.2089875,2173.3,2172.7,8.15435055]
[1773628536254,2.2089875,2173.3,2172.8,2.12111135]
[1773628543563,2.2089875,2173.7,2173.0,2.12111135]
[1773628545970,0.00332666,2173.8,2173.3,1.69390499]
[1773628546172,0.00332666,2173.8,2173.4,2.12111135]
[1773628546667,2.21231416,2173.8,2173.4,2.12111135]
[1773628550575,2.2089875,2174.2,2173.4,2.12111135]
[1773628550872,2.2089875,2174.2,2173.6,2.12111135]
[1773628551675,2.21386231,2174.2,2173.6,2.12111135]
[1773628553467,1.93042366,2174.6,2173.7,2.10137509]
[1773628553778,1.93042366,2174.6,2174.0,2.10137509]
[1773628554076,1.93042366,2174.6,2173.8,1.93670683]
[1773628554370,1.93042366,2174.6,2173.9,1.93670683]
[1773628554577,1.93616562,2174.6,2173.9,1.93670683]
[1773628556475,1.93616562,2174.6,2174.0,1.93670683]
[1773628557476,1.93616562,2174.6,2173.8,1.93670683]
[1773628557678,1.93616562,2174.6,2173.8,7.96470683]
[1773628557872,1.93616562,2174.6,2173.9,1.93670683]
[1773628562479,2.12496539,2174.1,2173.4,1.93670683]
[1773628562674,2.12496539,2174.1,2173.5,1.93670683]
[1773628563679,2.12496539,2174.3,2173.5,3.63061182]
[1773628563879,2.12496539,2174.3,2173.6,1.93670683]
[1773628564484,2.12496539,2174.2,2173.5,1.93670683]
[1773628564676,2.12496539,2174.0,2173.5,1.93670683]
[1773628564877,2.12496539,2174.0,2173.4,7.96370683]
[1773628565080,2.12496539,2174.0,2173.4,1.93670683]
[1773628567077,2.12496539,2174.5,2173.4,1.93670683]
[1773628571689,2.12496539,2174.5,2173.6,1.93670683]
[1773628571888,2.12496539,2174.5,2173.7,1.93670683]
[1773628572891,2.12496539,2174.5,2173.5,1.93670683]
[1773628573184,2.12496539,2174.2,2172.9,1.93670683]
[1773628573386,2.12496539,2174.2,2173.1,1.93670683]
[1773628576892,2.12496539,2174.2,2173.2,1.93670683]
[1773628577301,2.12496539,2174.0,2173.0,1.93670683]
[1773628577490,2.12496539,2174.0,2172.8,0.23008]
[1773628577491,2.12496539,2173.9,2172.8,0.23008]
[1773628577696,2.12496539,2173.9,2172.9,1.93670683]
[1773628578393,2.12496539,2173.6,2172.7,7.96894603]
[1773628579000,2.12496539,2173.6,2172.8,1.93670683]
[1773628579406,2.12496539,2173.6,2172.7,7.96894603]
[1773628579607,2.12496539,2173.6,2172.8,1.93670683]
[1773628580404,2.12496539,2173.6,2172.7,0.0042392]
[1773628581299,2.12496539,2173.6,2172.5,1.93670683]
[1773628581505,2.12496539,2173.3,2172.5,1.93670683]
[1773628582002,2.12496539,2173.3,2172.1,1.96851307]
[1773628582400,2.12496539,2173.3,2172.1,1.97418692]
[1773628583195,2.12496539,2173.3,2172.2,1.96851307]
[1773628586307,2.12496539,2173.3,2172.4,1.96851307]
[1773628596216,2.12496539,2173.3,2172.2,1.96851307]
[1773628596415,1.86683363,2173.1,2172.1,1.97418692]
[1773628605428,1.86683363,2173.3,2172.1,2.20432692]
[1773628616732,1.86683363,2173.3,2172.4,2.02509745]
[1773628616931,6.03,2173.5,2172.4,2.02509745]
[1773628617132,1.77792634,2173.4,2172.4,2.02509745]
[1773628617634,6.25895,2174.0,2172.4,2.02509745]
[1773628617635,1.77792634,2173.8,2172.4,2.02509745]
[1773628618534,1.77792634,2173.8,2172.7,2.02506745]
[1773628618837,1.77792634,2173.8,2173.1,1.79497745]
[1773628619136,1.77792634,2174.3,2173.1,1.79497745]
[1773628619428,1.77792634,2174.1,2173.1,1.79497745]
[1773628626943,1.77792634,2174.5,2173.3,1.79497745]
[1773628637948,1.77792634,2174.5,2173.5,1.79497745]
[1773628640455,1.77792634,2174.5,2173.7,1.79497745]
[1773628640645,1.77792634,2174.5,2173.7,1.80006781]
[1773628640857,1.77792634,2174.5,2173.9,1.79497745]
[1773628642157,1.72499158,2174.4,2173.7,1.75410046]
[1773628644459,1.72499158,2174.4,2173.8,1.7490101]
[1773628644659,1.73073354,2174.6,2173.8,1.7490101]
[1773628645862,0.00574196,2174.6,2174.0,1.7490101]
[1773628646061,1.72499158,2175.4,2174.2,1.7490101]
[1773628646964,1.72836402,2175.4,2174.2,1.7490101]
[1773628647559,1.72836402,2175.4,2174.4,1.7490101]
[1773628649665,1.72499158,2175.7,2174.6,1.7490101]
[1773628649868,1.72499158,2175.7,2174.7,6.027]
[1773628650168,1.72499158,2175.7,2174.8,1.7490101]
[1773628650771,1.72858851,2175.7,2174.8,1.7490101]
[1773628651271,1.72858851,2175.7,2174.6,1.7490101]
[1773628656671,1.72858851,2175.7,2174.8,1.7490101]
[1773628657274,1.72499158,2175.9,2175.0,1.7490101]
[1773628657975,1.72499158,2175.9,2174.6,1.7490101]
[1773628658177,1.72850919,2175.9,2174.6,1.7490101]
[1773628659476,1.72850919,2175.9,2174.5,6.026]
[1773628659477,1.72850919,2175.9,2174.8,1.7490101]
[1773628660274,1.95825919,2175.9,2174.3,1.7490101]
[1773628660479,1.95825919,2175.9,2174.4,1.7490101]
[1773628662383,1.95825919,2175.9,2174.6,1.7490101]